bitfinex/quotes_ETHUSD_20250130
["timestamp","ask_amount","ask_price","bid_price","bid_amount"]
[1738243106137,3.06842,3259.0,3258.6,0.22899354]
[1738243106138,3.0687,3258.7,3258.6,0.22899354]
[1738243106342,3.06889,3258.5,3258.4,0.19349067]
[1738243106665,3.06889,3258.5,3258.4,0.03550287]
[1738243106793,3.06889,3258.5,3258.4,0.22899354]
[1738243107816,3.06917,3258.2,3258.1,0.03550287]
[1738243108016,3.06927,3258.1,3258.0,0.19349067]
[1738243108319,3.06946,3257.9,3257.8,0.22899354]
[1738243108492,3.06927,3258.1,3258.0,0.22899354]
[1738243110635,3.06946,3257.9,3257.8,0.22899354]
[1738243111192,3.06946,3257.9,3257.7,0.03550287]
[1738243111193,3.06955,3257.8,3257.7,0.03550287]
[1738243111842,3.06955,3257.8,3257.6,30.19349067]
[1738243112143,3.06955,3257.8,3257.7,0.03550287]
[1738243112343,3.33752,3258.9,3258.1,0.22899354]
[1738243112344,3.06921,3258.2,3258.1,0.22899354]
[1738243112558,3.06902,3258.4,3258.3,0.03550287]
[1738243112709,3.06849,3259.0,3258.9,0.03550287]
[1738243112901,6.13698,3259.0,3258.9,0.03550287]
[1738243113098,6.13698,3259.0,3258.6,0.19349067]
[1738243113099,3.0687,3258.7,3258.6,0.22899354]
[1738243113338,3.0686,3258.9,3258.6,0.17897954]
[1738243113642,3.06861,3258.8,3258.6,0.17897954]
[1738243114052,3.06889,3258.5,3258.4,0.17897954]
[1738243114216,3.06876,3258.7,3258.4,0.17897954]
[1738243114634,3.85639,3258.5,3258.4,0.17897954]
[1738243114834,3.06908,3258.3,3258.2,0.17897954]
[1738243115128,3.09965588,3258.6,3258.5,0.17897954]
[1738243115336,3.06869,3258.8,3258.5,0.17897954]
[1738243115543,0.7875,3260.0,3259.6,0.17897954]
[1738243115702,0.005,3260.3,3259.6,1.01137954]
[1738243116007,3.06776,3259.7,3259.6,0.17897954]
[1738243116205,3.06795,3259.5,3259.4,0.17897954]
[1738243116887,3.06795,3259.5,3258.5,3.06887]
[1738243116888,3.0684,3259.1,3258.9,0.17897954]
[1738243117087,3.09927588,3259.0,3258.7,0.17897954]
[1738243117243,3.06861,3258.8,3258.7,0.17897954]
[1738243118195,3.06842,3259.0,3258.7,0.17897954]
[1738243118391,3.06861,3258.8,3258.7,0.17897954]
[1738243118537,3.06908,3258.3,3258.2,0.17897954]
[1738243118738,3.06868,3258.8,3258.3,0.17897954]
[1738243118955,3.06846,3259.0,3258.3,0.17897954]
[1738243119152,3.86682,3259.2,3258.6,0.17897954]
[1738243119444,3.06834,3259.1,3258.6,0.17897954]
[1738243119641,3.0682,3259.3,3258.9,0.17897954]
[1738243119841,0.8145,3259.6,3258.3,3.0997664]
[1738243119842,3.88239,3259.6,3258.6,0.17897954]
[1738243120081,0.7763,3259.4,3258.9,0.17897954]
[1738243120239,3.0686,3258.9,3258.7,0.17897954]
[1738243120587,3.06861,3258.8,3258.7,0.17897954]
[1738243121167,3.81236425,3258.8,3258.7,0.17897954]
[1738243121369,4.61026425,3258.8,3258.7,0.17897954]
[1738243121639,3.0688,3258.6,3258.5,0.17897954]
[1738243121871,4.61026425,3258.8,3258.5,0.17897954]
[1738243122183,0.74375425,3258.8,3258.7,0.17897954]
[1738243122501,0.28605933,3258.8,3258.7,0.17897954]
[1738243122792,0.28605933,3258.8,3258.5,0.7583]
[1738243122793,3.06824,3259.2,3259.0,0.17897954]
[1738243123594,3.83605,3259.3,3259.0,0.17897954]
[1738243123595,3.06833,3259.1,3259.0,0.17897954]
[1738243123770,3.06852,3258.9,3258.8,0.17897954]
[1738243123949,3.0687,3258.7,3258.6,0.17897954]
[1738243124548,3.0687,3258.7,3258.4,0.17897954]
[1738243124869,3.0686,3258.9,3258.4,0.17897954]
[1738243125072,3.06889,3258.5,3258.4,0.17897954]
[1738243125375,3.06882,3258.6,3258.4,0.17897954]
[1738243125762,0.7602,3258.8,3258.4,0.17897954]
[1738243126159,1.78829987,3259.1,3258.5,0.7547]
[1738243126365,3.06833,3259.1,3258.7,0.17897954]
[1738243126588,3.06843,3259.0,3258.7,0.17897954]
[1738243127391,3.06839,3259.1,3258.7,0.17897954]
[1738243127777,3.06861,3258.8,3258.7,0.17897954]
[1738243128164,3.06844,3259.0,3258.7,0.17897954]
[1738243128351,3.0684,3259.1,3258.7,0.17897954]
[1738243129273,3.06848,3259.0,3258.7,0.17897954]
[1738243131697,3.06826,3259.2,3258.9,0.17897954]
[1738243131698,3.06824,3259.2,3258.9,0.17897954]
[1738243132161,3.06821,3259.3,3258.9,0.17897954]
[1738243132860,3.82809,3259.6,3259.2,0.17897954]
[1738243133158,3.06789,3259.6,3259.5,0.17897954]
[1738243135039,3.0674,3260.1,3259.9,0.17897954]
[1738243135243,3.06733,3260.2,3259.9,0.17897954]
[1738243135244,3.06748,3260.0,3259.9,0.17897954]
[1738243136924,3.07221,3260.3,3260.2,0.17897954]
[1738243137561,3.07221,3260.3,3259.2,0.803]
[1738243137562,3.06776,3259.7,3259.6,0.17897954]
[1738243137721,3.06745,3260.1,3260.0,0.17897954]
[1738243139118,0.8006,3260.2,3259.4,0.17897954]
[1738243139351,0.005,3260.3,3259.4,0.17897954]
[1738243139352,3.06801,3259.5,3259.4,0.17897954]
[1738243140296,3.06795,3259.5,3259.4,0.17897954]
[1738243140797,3.06795,3259.5,3258.0,3.06936]
[1738243140798,3.88573,3259.1,3259.0,0.17897954]
[1738243141594,3.06852,3258.9,3258.8,0.17897954]
[1738243141795,3.06852,3258.9,3257.9,0.33938772]
[1738243141796,3.06861,3258.8,3258.7,0.17897954]
[1738243142490,3.06861,3258.8,3258.5,0.17897954]
[1738243142687,3.06861,3258.8,3257.9,3.37815]
[1738243142688,3.06899,3258.4,3258.2,0.17897954]
[1738243143107,0.306861,3258.8,3257.9,0.3087]
[1738243143108,0.8234,3258.8,3258.4,0.17897954]
[1738243143651,3.06877,3258.7,3258.4,0.17897954]
[1738243144171,3.06889,3258.5,3258.0,0.17897954]
[1738243144380,3.06915,3258.3,3258.0,0.17897954]
[1738243144585,3.06915,3258.3,3257.0,6.54377807]
[1738243144586,3.06946,3257.9,3257.8,0.17897954]
[1738243144760,0.782,3258.4,3257.3,0.17897954]
[1738243144761,3.782,3258.1,3257.3,0.17897954]
[1738243144964,3.06975,3257.6,3257.3,0.17897954]
[1738243145317,0.8004,3257.4,3256.7,0.17897954]
[1738243145610,0.8004,3256.8,3256.7,0.17897954]
[1738243145958,0.8004,3256.8,3255.7,0.8238]
[1738243145959,3.07081,3256.5,3256.3,0.17897954]
[1738243146167,3.07081,3256.5,3255.6,0.17897954]
[1738243146168,3.07143,3255.9,3255.6,0.17897954]
[1738243146385,3.07143,3255.9,3255.1,4.02824112]
[1738243146386,0.8004,3256.4,3256.0,0.17897954]
[1738243146599,0.61184129,3256.9,3256.4,0.17897954]
[1738243146799,3.68224129,3256.9,3256.4,0.17897954]
[1738243147207,3.68224129,3256.9,3256.2,0.17897954]
[1738243147208,1.36378842,3256.9,3256.2,0.17897954]
[1738243147503,1.36378842,3256.9,3255.6,3.07161]
[1738243147504,3.07049,3256.8,3256.5,0.17897954]
[1738243147678,3.07068,3256.6,3256.5,0.17897954]
[1738243147874,3.07082,3256.5,3256.2,0.17897954]
[1738243148075,3.07068,3256.6,3256.2,0.17897954]
[1738243148297,3.07091,3256.4,3256.0,0.17897954]
[1738243148462,3.07097,3256.3,3256.0,0.17897954]
[1738243149129,0.61184129,3256.9,3256.3,0.17897954]
[1738243149259,3.07053,3256.8,3256.3,0.17897954]
[1738243149464,3.07087,3256.4,3256.3,0.17897954]
[1738243149662,3.85767,3256.4,3256.3,0.17897954]
[1738243149907,3.85767,3256.4,3255.5,3.07172]
[1738243149908,3.07154,3255.7,3255.5,0.17897954]
[1738243150114,3.07174,3255.5,3255.2,0.17897954]
[1738243150412,3.07163,3255.6,3255.5,0.17897954]
[1738243150725,0.7868,3256.4,3255.9,0.17897954]
[1738243150911,3.07125,3256.0,3255.4,0.17897954]
[1738243151106,3.07172,3255.5,3255.2,0.17897954]
[1738243151307,3.07172,3255.5,3255.1,0.95621112]
[1738243151308,3.07191,3255.3,3255.1,0.95621112]
[1738243151806,3.072,3255.2,3255.1,0.95621112]
[1738243152013,10.31421807,3255.2,3255.1,0.12291112]
[1738243152214,10.32921807,3255.2,3255.1,0.12291112]
[1738243152415,5.18081281,3255.2,3255.1,0.12291112]
[1738243152715,3.8407,3255.2,3255.1,0.12291112]
[1738243155058,4.1037,3255.2,3255.1,0.12291112]
[1738243156322,0.777,3256.6,3256.2,0.17897954]
[1738243156514,0.777,3256.6,3255.1,3.59642919]
[1738243156515,3.84704,3257.3,3256.6,0.17897954]
[1738243156840,3.84704,3257.3,3256.0,0.7573]
[1738243156841,3.07022,3257.1,3256.8,0.17897954]
[1738243157058,3.0704,3256.9,3256.8,0.17897954]
[1738243157771,3.07068,3256.6,3256.3,0.17897954]
[1738243157969,3.07068,3256.6,3256.5,0.17897954]
[1738243158130,3.07087,3256.4,3256.3,0.17897954]
[1738243159671,0.7832,3256.4,3255.8,0.17897954]
[1738243159872,0.7832,3256.4,3255.1,0.12291112]
[1738243159873,3.07134,3255.9,3255.6,0.17897954]
[1738243160370,3.07164,3255.6,3255.1,0.12291112]
[1738243160679,0.015,3256.2,3255.1,0.30189066]
[1738243160840,3.07178,3255.5,3255.4,0.17897954]
[1738243161030,0.264,3256.0,3255.4,0.17897954]
[1738243161233,0.7832,3256.4,3255.4,0.17897954]
[1738243161455,3.07164,3255.6,3255.4,0.17897954]
[1738243161655,3.07164,3255.6,3255.1,0.12291112]
[1738243161656,3.07191,3255.3,3255.2,0.17897954]
[1738243161873,3.072,3255.2,3255.1,0.12291112]
[1738243164602,0.8244,3255.3,3255.1,0.12291112]
[1738243164803,3.07193,3255.3,3255.1,0.12291112]
[1738243165114,3.07193,3255.3,3255.2,0.17897954]
[1738243165836,3.072,3255.2,3255.1,0.12291112]
[1738243165987,3.072,3255.2,3255.1,0.30189066]
[1738243167320,3.07092,3256.4,3255.8,0.17897954]
[1738243167625,3.07092,3256.4,3256.0,0.17897954]
[1738243167823,0.8188,3256.6,3256.5,0.17897954]
[1738243168026,3.07053,3256.8,3256.5,0.17897954]
[1738243168229,3.07061,3256.7,3256.5,0.17897954]
[1738243168523,3.07061,3256.7,3256.6,0.17897954]
[1738243168928,3.07059,3256.7,3256.6,0.17897954]
[1738243169095,3.07077,3256.6,3256.3,0.17897954]
[1738243169281,3.07106,3256.2,3256.1,0.17897954]
[1738243169913,3.07125,3256.0,3255.7,0.17897954]
[1738243170110,3.07125,3256.0,3255.9,0.17897954]
[1738243170513,3.07125,3256.0,3255.1,3.95767112]
[1738243170514,3.07144,3255.8,3255.7,0.17897954]
[1738243170753,3.07163,3255.6,3255.5,0.17897954]
[1738243172852,3.07163,3255.6,3255.1,0.12291112]
[1738243172853,3.072,3255.2,3255.1,0.12291112]
[1738243173666,3.072,3255.2,3255.1,0.30189066]
[1738243173959,3.07181,3255.4,3255.3,0.17897954]
[1738243174515,6.07148,3255.8,3255.7,0.17897954]
[1738243174516,3.07148,3255.8,3255.7,0.17897954]
[1738243175658,3.07125,3256.0,3255.9,0.17897954]
[1738243175813,3.07122,3256.1,3255.9,0.17897954]
[1738243176020,3.07125,3256.0,3255.9,0.17897954]
[1738243177656,0.7538,3256.6,3256.3,0.17897954]
[1738243177857,3.82448,3256.6,3256.5,0.17897954]
[1738243178760,0.7843,3258.8,3258.4,0.17897954]
[1738243179062,0.12102046,3259.9,3259.2,0.17897954]
[1738243179063,3.06814,3259.3,3259.2,0.17897954]
[1738243179272,0.613617,3259.3,3259.2,0.17897954]
[1738243179764,3.06788,3259.6,3259.2,0.17897954]
[1738243179939,3.06768,3259.8,3259.6,0.17897954]
[1738243180662,3.06749,3260.0,3259.8,0.17897954]
[1738243180833,3.06757,3259.9,3259.8,0.17897954]
[1738243181267,3.06786,3259.6,3259.3,0.17897954]
[1738243181568,3.06795,3259.5,3259.4,0.17897954]
[1738243181733,3.06814,3259.3,3259.0,0.17897954]
[1738243181928,3.06833,3259.1,3259.0,0.17897954]
[1738243182192,3.06814,3259.3,3259.2,0.17897954]
[1738243182362,3.06814,3259.3,3259.0,0.17897954]
[1738243182563,3.06833,3259.1,3259.0,0.17897954]
[1738243182767,3.06852,3258.9,3258.8,0.17897954]
[1738243184766,3.0687,3258.7,3258.6,0.17897954]
[1738243184938,3.06889,3258.5,3258.2,0.17897954]
[1738243185129,3.06908,3258.3,3257.8,0.17897954]
[1738243185326,0.388618,3258.2,3256.9,0.7996]
[1738243185531,0.388618,3258.2,3257.4,0.17897954]
[1738243185532,3.06983,3257.5,3257.4,0.17897954]
[1738243185755,3.83353,3257.5,3257.4,0.17897954]
[1738243186361,3.07002,3257.3,3257.2,0.17897954]
[1738243187635,3.07021,3257.1,3257.0,0.17897954]
[1738243189356,3.07021,3257.1,3256.4,0.17897954]
[1738243189357,3.07049,3256.8,3256.4,0.17897954]
[1738243189556,3.07078,3256.5,3256.4,0.17897954]
[1738243191060,3.0,3256.2,3256.0,0.17897954]
[1738243191257,3.07115,3256.1,3256.0,0.17897954]
[1738243191459,3.07163,3255.6,3255.5,0.17897954]
[1738243192407,3.07181,3255.4,3255.3,0.17897954]
[1738243192616,3.686154,3255.4,3255.1,0.30189066]
[1738243192764,3.072,3255.2,3255.1,0.30189066]
[1738243194158,3.087,3255.2,3255.1,0.12291112]
[1738243195172,3.072,3255.2,3255.1,0.30189066]
[1738243199417,3.072,3255.2,3255.1,0.12291112]
[1738243199418,3.087,3255.2,3255.1,0.12291112]
[1738243199718,4.035771,3255.2,3255.1,0.12291112]
[1738243200223,4.035771,3255.2,3255.1,1.12e-06]
[1738243200224,7.826171,3255.2,3255.1,1.12e-06]
[1738243200578,7.811171,3255.2,3255.1,1.12e-06]
[1738243200779,4.020771,3255.2,3255.1,1.12e-06]
[1738243200984,3.072,3255.2,3255.1,1.12e-06]
[1738243201306,3.087,3255.2,3255.1,1.12e-06]
[1738243201478,2.8374,3255.2,3255.1,1.12e-06]
[1738243202134,3.0794,3255.2,3255.1,1.12e-06]
[1738243202609,2.8224,3255.2,3255.1,1.12e-06]
[1738243202979,3.719011,3255.2,3255.1,1.12e-06]
[1738243206327,3.734011,3255.2,3255.1,1.12e-06]
[1738243206512,4.735511,3255.2,3255.1,1.12e-06]
[1738243207736,4.975511,3255.2,3255.1,1.12e-06]
[1738243207906,4.735511,3255.2,3255.1,1.12e-06]
[1738243208107,4.990511,3255.2,3255.1,1.12e-06]
[1738243208502,3.07276,3254.4,3254.3,0.17897954]
[1738243211049,3.07332,3253.8,3253.7,0.17897954]
[1738243212230,3.07351,3253.6,3253.5,0.17897954]
[1738243212563,3.90651,3253.6,3253.5,0.17897954]
[1738243212719,3.07351,3253.6,3253.5,0.17897954]
[1738243212917,3.07332,3253.8,3253.7,0.17897954]
[1738243213140,3.07326,3253.9,3253.7,0.17897954]
[1738243213449,3.07332,3253.8,3253.7,0.17897954]
[1738243213943,3.0738,3253.3,3253.2,0.17897954]
[1738243217433,3.0738,3253.3,3253.0,0.17897954]
[1738243217434,3.07399,3253.1,3253.0,0.17897954]
[1738243217642,3.07455,3252.5,3252.4,0.17897954]
[1738243219355,3.07422,3252.9,3252.8,0.17897954]
[1738243221331,3.074,3253.1,3253.0,0.17897954]
[1738243225061,4.011172,3253.1,3253.0,0.17897954]
[1738243225265,7.011172,3253.1,3252.8,0.17897954]
[1738243225413,6.07417,3252.9,3252.8,0.17897954]
[1738243225620,3.07436,3252.8,3252.7,0.17897954]
[1738243225830,3.32736,3252.8,3252.7,0.17897954]
[1738243226031,3.07446,3252.6,3252.5,0.17897954]
[1738243232234,3.07446,3252.6,3252.1,0.005]
[1738243232235,3.07465,3252.4,3252.3,0.17897954]
[1738243234281,3.07465,3252.4,3252.3,0.23103162]
[1738243234429,3.07465,3252.4,3252.3,0.17897954]
[1738243234630,3.07465,3252.4,3252.3,0.23103162]
[1738243235171,3.07429,3252.8,3252.7,0.17897954]
[1738243236430,3.07409,3253.0,3252.9,0.17897954]
[1738243236771,3.07409,3253.0,3252.9,0.23075043]
[1738243237070,3.688897,3253.0,3252.9,0.17897954]
[1738243237436,3.07427,3252.8,3252.5,0.17897954]
[1738243237636,3.85107,3252.8,3252.5,0.17897954]
[1738243237887,3.07446,3252.6,3252.5,0.17897954]
[1738243238090,3.07446,3252.6,3252.4,0.44891754]
[1738243238091,3.07455,3252.5,3252.4,0.44891754]
[1738243238964,3.07465,3252.4,3252.3,0.40405122]
[1738243239165,9.57781002,3252.4,3252.3,1.68e-06]
[1738243239372,3.07484,3252.2,3252.1,0.005]
[1738243239582,3.07521,3251.8,3251.7,0.17897954]
[1738243239753,3.32321,3251.8,3251.7,0.17897954]
[1738243240254,3.963043,3251.8,3251.7,0.17897954]
[1738243240489,3.0754,3251.6,3251.5,0.35955393]
[1738243241098,3.0755,3251.5,3251.4,0.17897954]
[1738243241873,3.8402,3251.5,3251.4,0.17897954]
[1738243242300,3.8402,3251.5,3250.6,0.6303888]
[1738243242301,3.07626,3250.7,3250.6,0.6303888]
[1738243242617,3.7647,3251.5,3250.9,0.17897954]
[1738243242618,3.07603,3251.0,3250.9,0.17897954]
[1738243243329,3.715921,3251.0,3250.9,0.17897954]
[1738243243677,3.962921,3251.0,3250.9,0.17897954]
[1738243244718,3.07588,3251.1,3250.9,0.17897954]
[1738243245018,3.07576,3251.3,3251.2,0.17897954]
[1738243245771,3.07576,3251.3,3251.2,0.2301225]
[1738243246208,3.07576,3251.3,3251.2,0.17897954]
[1738243246598,6.07576,3251.3,3251.0,0.17897954]
[1738243246798,3.84278,3251.1,3251.0,0.17897954]
[1738243247223,3.07588,3251.1,3251.0,0.17897954]
[1738243248219,3.32088,3251.1,3251.0,0.17897954]
[1738243251090,6.32088,3251.1,3251.0,0.17897954]
[1738243251776,6.33588,3251.1,3251.0,0.17897954]
[1738243252123,7.935738,3251.1,3251.0,0.17897954]
[1738243253620,7.920738,3251.1,3251.0,0.17897954]
[1738243253923,7.934738,3251.1,3251.0,0.17897954]
[1738243255190,3.07588,3251.1,3251.0,0.17897954]
[1738243255431,3.09876,3251.3,3251.2,0.17897954]
[1738243255923,3.09876,3251.3,3251.2,0.23063162]
[1738243256123,3.09876,3251.3,3251.2,0.17897954]
[1738243256717,6.09876,3251.3,3251.2,0.17897954]
[1738243257044,3.09876,3251.3,3251.2,0.17897954]
[1738243257528,3.09876,3251.3,3251.2,0.23063162]
[1738243258332,3.09876,3251.3,3251.2,0.17897954]
[1738243258831,0.023,3251.3,3251.2,0.17897954]
[1738243259036,3.09869,3251.3,3251.2,0.23063162]
[1738243259589,7.038676,3251.3,3251.2,0.23063162]
[1738243259979,7.038676,3251.3,3251.2,0.17897954]
[1738243261303,6.09869,3251.3,3251.2,0.17897954]
[1738243261634,3.09869,3251.3,3251.2,0.17897954]
[1738243262133,3.11369,3251.3,3251.2,0.17897954]
[1738243263297,3.09869,3251.3,3251.2,0.17897954]
[1738243264967,3.09088,3251.1,3251.0,0.17897954]
[1738243265171,6.09088,3251.1,3251.0,0.17897954]
[1738243266222,6.64088,3251.1,3251.0,9.54e-06]
[1738243266423,3.07682,3250.1,3250.0,30.0]
[1738243266732,3.07682,3250.1,3250.0,30.05020418]
[1738243267327,4.038837,3250.1,3250.0,30.05020418]
[1738243267751,7.038837,3250.1,3250.0,30.05020418]
[1738243267970,3.07682,3250.1,3250.0,30.05020418]
[1738243268779,3.09182,3250.1,3250.0,30.05020418]
[1738243269067,3.09182,3250.1,3250.0,30.0]
[1738243269252,3.09182,3250.1,3250.0,30.05020418]
[1738243271185,3.07682,3250.1,3250.0,30.05020418]
[1738243272179,0.239,3250.2,3250.0,30.05020418]
[1738243272359,3.07682,3250.1,3250.0,30.05020418]
[1738243273546,3.07663,3250.3,3250.0,30.05020418]
[1738243273751,0.60163942,3250.5,3250.1,0.7689]
[1738243273752,3.07651,3250.5,3250.1,0.7689]
[1738243273951,6.15305,3250.5,3250.1,0.7689]
[1738243274201,3.07651,3250.5,3250.2,0.05043257]
[1738243274766,3.07658,3250.4,3250.2,0.05043257]
[1738243274955,3.07651,3250.5,3250.2,0.05043257]
[1738243275803,3.0987,3251.3,3250.8,0.7644]
[1738243275965,0.023,3251.3,3250.8,0.7644]
[1738243276171,3.0987,3251.3,3250.9,0.05026216]
[1738243276611,3.07579,3251.2,3250.9,0.05026216]
[1738243276891,3.07597,3251.0,3250.9,0.05026216]
[1738243277127,3.07595,3251.1,3250.3,0.8074]
[1738243277407,3.07595,3251.1,3250.4,0.05030713]
[1738243277408,3.07615,3250.9,3250.4,0.05030713]
[1738243277772,3.07599,3251.0,3250.4,0.05030713]
[1738243277978,3.07586,3251.2,3250.6,3.07634]
[1738243278179,3.0759,3251.1,3250.5,3.07635]
[1738243278381,3.0759,3251.1,3250.3,4.27769884]
[1738243278382,3.07601,3251.0,3250.7,0.05012222]
[1738243278566,3.0761,3250.9,3250.6,0.05015649]
[1738243278783,3.0761,3250.9,3250.8,0.05008796]
[1738243278978,3.07592,3251.1,3250.7,0.05012222]
[1738243279177,3.07592,3251.1,3250.8,0.05008796]
[1738243279404,0.023,3251.3,3250.9,0.7807]
[1738243279703,0.023,3251.3,3251.0,0.05001944]
[1738243280603,0.023,3251.3,3251.1,3.07587]
[1738243280808,0.023,3251.3,3251.0,0.05001944]
[1738243280978,0.023,3251.3,3251.2,0.04995093]
[1738243281161,0.023,3251.3,3251.1,0.04998518]
[1738243281360,0.023,3251.3,3251.2,3.90913093]
[1738243281603,3.07445,3252.7,3251.5,0.7834]
[1738243281901,3.0748,3252.3,3252.1,0.7834]
[1738243282091,3.0,3252.9,3252.1,0.7834]
[1738243282092,3.07465,3252.4,3252.1,0.7834]
[1738243282404,3.07474,3252.3,3252.2,0.04952325]
[1738243283203,3.07484,3252.2,3251.8,0.7834]
[1738243283389,3.0746,3252.5,3251.8,0.7834]
[1738243283765,3.0746,3252.5,3251.9,3.0751]
[1738243284001,3.07467,3252.4,3251.8,3.85853]
[1738243284310,3.07467,3252.4,3251.9,3.12473596]
[1738243284606,3.07467,3252.4,3251.9,0.04962596]
[1738243284804,3.07483,3252.3,3251.9,0.04962596]
[1738243285009,3.07495,3252.1,3251.9,0.04962596]
[1738243285664,3.68992,3252.1,3251.9,0.04962596]
[1738243285859,3.68992,3252.1,3250.6,3.69130229]
[1738243285860,3.68992,3252.1,3251.4,0.7955]
[1738243286091,3.07529,3251.8,3251.5,0.04786753]
[1738243286626,3.07474,3252.4,3251.5,0.04786753]
[1738243286627,3.07447,3252.6,3252.2,0.8229]
[1738243286992,3.07465,3252.4,3252.3,0.04715268]
[1738243287326,3.07465,3252.4,3252.2,0.8229]
[1738243287550,3.07465,3252.4,3252.3,0.04715268]
[1738243287551,3.0747,3252.4,3252.3,0.04715268]
[1738243287691,3.0747,3252.4,3251.9,0.7502]
[1738243287893,3.07503,3252.0,3251.9,0.7502]
[1738243288499,3.07503,3252.0,3251.6,0.8143]
[1738243289289,3.07522,3251.8,3251.6,0.8143]
[1738243289827,3.07503,3252.0,3251.6,0.8143]
[1738243290409,3.07516,3251.9,3251.6,0.8143]
[1738243290840,3.0742,3252.9,3252.3,3.86774]
[1738243290999,3.07399,3253.1,3252.4,3.07465]
[1738243291494,3.07411,3253.0,3252.3,3.86774]
[1738243292028,0.8262,3253.5,3252.3,0.793]
[1738243292222,5.437,3253.2,3252.5,3.07449]
[1738243292421,3.07406,3253.1,3252.5,3.07449]
[1738243292629,5.437,3253.2,3252.6,3.07443]
[1738243292823,2.437,3253.2,3253.0,0.7934]
[1738243294243,2.437,3253.2,3244.6,8.0]
[1738243294244,0.015,3252.9,3251.9,0.8108]
[1738243294536,3.07484,3252.2,3251.9,0.8108]
[1738243294939,6.0744,3252.7,3251.9,0.8108]
[1738243295251,3.07495,3252.1,3251.9,0.8108]
[1738243295717,3.07503,3252.0,3251.4,0.7846]
[1738243295919,3.31068,3252.4,3251.4,0.7846]
[1738243296122,3.07492,3252.2,3251.6,3.07537]
[1738243296322,3.07492,3252.2,3251.4,1.170624]
[1738243296323,3.07494,3252.1,3251.5,3.07549]
[1738243297876,3.07515,3251.9,3251.4,4.246214]
[1738243298034,3.07515,3251.9,3251.4,0.7846]
[1738243298237,3.07531,3251.8,3251.4,0.7846]
[1738243299272,3.07531,3251.8,3251.5,0.03754167]
[1738243299472,3.07499,3252.1,3251.5,3.11304167]
[1738243299679,3.07499,3252.1,3251.6,3.07535]
[1738243300035,3.07499,3252.1,3251.7,0.03776615]
[1738243300231,3.07474,3252.3,3251.7,3.11298615]
[1738243300438,3.30901,3253.1,3252.4,3.07459]
[1738243300632,3.30901,3253.1,3252.5,0.8105]
[1738243300837,3.07419,3252.9,3252.5,0.84799227]
[1738243301080,3.07424,3252.9,3252.5,0.84799227]
[1738243301289,3.0743,3252.8,3252.5,0.84799227]
[1738243301805,3.07424,3252.9,3252.5,0.84799227]
[1738243302364,3.07403,3253.1,3252.5,3.92247227]
[1738243302564,3.07403,3253.1,3252.6,3.0744]
[1738243302802,3.07403,3253.1,3252.7,0.03721905]
[1738243303101,3.07403,3253.1,3252.5,0.8105]
[1738243303102,3.0741,3253.0,3252.5,0.8105]
[1738243303462,3.07431,3252.8,3252.6,0.03725327]
[1738243304005,3.0741,3253.0,3252.6,0.03725327]
[1738243304202,3.07418,3252.9,3252.6,0.03725327]
[1738243304415,5.51094,3253.2,3252.6,0.03725327]
[1738243304565,0.6294134,3252.6,3252.5,0.8105]
[1738243304765,0.6294134,3252.6,3252.5,0.84654572]
[1738243309296,0.6294134,3252.6,3252.5,3.92109572]
[1738243316394,0.6294134,3252.6,3252.5,0.03604572]
[1738243316719,0.6294134,3252.6,3252.2,3.07476]
[1738243317015,0.6294134,3252.6,3252.3,3.10942894]
[1738243317678,0.6294134,3252.6,3252.3,0.03473894]
[1738243317873,0.6294134,3252.6,3252.3,3.10947894]
[1738243318178,0.6294134,3252.6,3252.4,0.03472044]
[1738243319983,3.0746,3252.5,3251.7,0.7996]
[1738243320185,3.0747,3252.4,3251.8,6.15028]
[1738243320520,3.07464,3252.5,3251.8,3.0752]
[1738243320675,3.07481,3252.3,3251.8,3.0752]
[1738243320876,0.67785834,3252.4,3252.0,3.07502]
[1738243321783,0.67785834,3252.4,3251.8,3.0752]
[1738243322125,0.67785834,3252.4,3251.9,3.07511]
[1738243322492,3.75255834,3252.4,3251.9,3.07511]
[1738243322697,0.67785834,3252.4,3251.9,3.07508]
[1738243323427,0.7988,3252.3,3251.7,3.07528]
[1738243323731,3.07505,3252.0,3251.4,0.7698]
[1738243323934,3.07505,3252.0,3251.5,3.07545]
[1738243324634,3.69002,3252.0,3251.0,0.821]
[1738243324797,3.69002,3252.0,3251.4,3.07554]
[1738243325212,6.76512,3252.0,3251.4,3.07554]
[1738243325388,3.07518,3251.9,3251.2,6.1514]
[1738243325592,3.69002,3252.0,3251.2,2.87734297]
[1738243325792,0.61499,3252.0,3251.5,3.07547]
[1738243326106,3.07503,3252.0,3251.5,3.07547]
[1738243326503,3.07515,3251.9,3251.3,3.07565]
[1738243326709,3.075,3252.1,3251.6,3.07535]
[1738243327090,3.8736,3252.3,3251.8,3.07519]
[1738243327291,3.8736,3252.3,3251.6,3.07535]
[1738243327615,3.07496,3252.1,3251.6,3.07535]
[1738243329098,3.07496,3252.1,3251.7,0.03552961]
[1738243329294,0.41016,3252.2,3251.7,0.03552961]
[1738243329635,3.8736,3252.3,3251.7,0.82192961]
[1738243329815,3.07489,3252.2,3251.7,0.03552961]
[1738243330018,3.07495,3252.1,3251.7,0.03552961]
[1738243330220,3.07484,3252.2,3251.7,0.03552961]
[1738243330424,3.87359,3252.3,3251.7,3.11078961]
[1738243330635,3.07524,3251.8,3251.4,0.7864]
[1738243330956,6.15014,3252.0,3251.3,3.07561]
[1738243331093,6.15014,3252.0,3251.2,3.07573]
[1738243331094,3.07503,3252.0,3251.2,3.07573]
[1738243331738,3.07527,3251.8,3251.0,3.89256]
[1738243331940,3.07548,3251.6,3251.0,7.42016514]
[1738243332142,3.07548,3251.6,3251.1,3.07587]
[1738243332307,3.07526,3251.8,3251.1,3.07587]
[1738243332656,3.07541,3251.6,3251.1,3.07587]
[1738243332833,3.07541,3251.6,3251.0,4.34420514]
[1738243333040,3.0755,3251.5,3251.0,1.26830514]
[1738243333241,3.07587,3251.2,3250.6,0.7751]
[1738243333444,3.07564,3251.4,3250.8,3.07616]
[1738243333608,3.87603,3251.6,3250.9,3.076]
[1738243333609,3.07553,3251.5,3250.9,3.076]